[Event "Late-Titled-Tuesday-Blitz-September-19-2023"]
[Site "Chess.com"]
[Date "2023.09.19"]
[Round "8"]
[White "Chessdreamer2020"]
[Black "AlexOstrovskiy"]
[Result "1-0"]
[WhiteElo "2544"]
[BlackElo "2635"]
[TimeControl "180+1"]
[EndTime "15:27:50 PDT"]
[Termination "Chessdreamer2020 won on time"]

1. e4 {[%clk 0:02:59.7]} 1... d5 {[%clk 0:02:58.9]} 2. exd5 {[%clk 0:02:59]}
2... Nf6 {[%clk 0:02:58.3]} 3. Bb5+ {[%clk 0:02:58.5]} 3... Nbd7 {[%clk
0:02:57.8]} 4. Nf3 {[%clk 0:02:57.8]} 4... a6 {[%clk 0:02:53.6]} 5. Be2 {[%clk
0:02:58.2]} 5... Nxd5 {[%clk 0:02:48.5]} 6. d4 {[%clk 0:02:58.7]} 6... b5 {[%clk
0:02:46.3]} 7. O-O {[%clk 0:02:57.9]} 7... e6 {[%clk 0:02:46.1]} 8. a4 {[%clk
0:02:57]} 8... Rb8 {[%clk 0:02:42.4]} 9. axb5 {[%clk 0:02:56.4]} 9... axb5
{[%clk 0:02:43.3]} 10. Na3 {[%clk 0:02:53.7]} 10... c6 {[%clk 0:02:39.5]} 11. c3
{[%clk 0:02:49.9]} 11... Be7 {[%clk 0:02:39.1]} 12. Nc2 {[%clk 0:02:48.6]} 12...
O-O {[%clk 0:02:39.1]} 13. Ne3 {[%clk 0:02:48.9]} 13... Nf4 {[%clk 0:02:36.6]}
14. Re1 {[%clk 0:02:45.2]} 14... Nxe2+ {[%clk 0:02:36]} 15. Qxe2 {[%clk
0:02:45.7]} 15... Bb7 {[%clk 0:02:36.2]} 16. b4 {[%clk 0:02:44.4]} 16... Bd6
{[%clk 0:02:31.8]} 17. Ng4 {[%clk 0:02:39.2]} 17... Qc7 {[%clk 0:02:27.5]} 18.
Bg5 {[%clk 0:02:29.5]} 18... Rbe8 {[%clk 0:02:18.7]} 19. Bh4 {[%clk 0:02:13]}
19... f6 {[%clk 0:02:11]} 20. Bg3 {[%clk 0:02:12.1]} 20... Nb6 {[%clk
0:02:06.7]} 21. Ra7 {[%clk 0:02:06.4]} 21... Bxg3 {[%clk 0:02:02.3]} 22. hxg3
{[%clk 0:02:06.9]} 22... Qb8 {[%clk 0:01:59.8]} 23. Rea1 {[%clk 0:01:58.8]}
23... Na4 {[%clk 0:01:55.3]} 24. R7xa4 {[%clk 0:01:39.5]} 24... bxa4 {[%clk
0:01:56.2]} 25. Rxa4 {[%clk 0:01:40]} 25... Qd6 {[%clk 0:01:47.5]} 26. Ra5
{[%clk 0:01:38.9]} 26... Bc8 {[%clk 0:01:43.7]} 27. Ne3 {[%clk 0:01:21.9]} 27...
Qc7 {[%clk 0:01:30.7]} 28. Nc4 {[%clk 0:01:08.2]} 28... Bd7 {[%clk 0:01:28.8]}
29. Qa2 {[%clk 0:01:04.8]} 29... Rb8 {[%clk 0:01:02.2]} 30. Nfd2 {[%clk
0:01:03.2]} 30... Rb5 {[%clk 0:00:56.8]} 31. Ra7 {[%clk 0:01:01.9]} 31... Rb7
{[%clk 0:00:56.8]} 32. Ra5 {[%clk 0:01:02.4]} 32... Rb5 {[%clk 0:00:26.5]} 33.
Ra7 {[%clk 0:01:01.6]} 33... Rb7 {[%clk 0:00:26.7]} 34. Ra6 {[%clk 0:00:57.8]}
34... c5 {[%clk 0:00:12.3]} 35. dxc5 {[%clk 0:00:51.7]} 35... Bc6 {[%clk
0:00:12.1]} 36. Nd6 {[%clk 0:00:50.1]} 36... Bd5 {[%clk 0:00:12.2]} 37. c4
{[%clk 0:00:48.3]} 37... Rxb4 {[%clk 0:00:06]} 38. cxd5 {[%clk 0:00:46.6]} 38...
e5 {[%clk 0:00:02.6]} 39. Rc6 {[%clk 0:00:41.7]} 39... Qe7 {[%clk 0:00:02.3]}
40. Nf5 {[%clk 0:00:38.9]} 40... Qf7 {[%clk 0:00:02.5]} 41. Re6 {[%clk
0:00:30.6]} 41... Rfb8 {[%clk 0:00:01.9]} 42. Re7 {[%clk 0:00:29.1]} 42... Qh5
{[%clk 0:00:02.1]} 43. d6+ {[%clk 0:00:28.8]} 43... Kh8 {[%clk 0:00:01.7]} 44.
Nxg7 {[%clk 0:00:20.2]} 44... Qd1+ {[%clk 0:00:02]} 45. Kh2 {[%clk 0:00:19.3]}
45... Rb2 {[%clk 0:00:02.6]} 46. Qf7 {[%clk 0:00:17.1]} 46... Qxd2 {[%clk
0:00:02.4]} 47. Nf5 {[%clk 0:00:13.4]} 1-0

[Event "Late-Titled-Tuesday-Blitz-September-19-2023"]
[Site "Chess.com"]
[Date "2023.09.19"]
[Round "8"]
[White "ChessWarrior7197"]
[Black "ArtemDyachuk"]
[Result "1-0"]
[WhiteElo "3054"]
[BlackElo "2714"]
[TimeControl "180+1"]
[EndTime "15:27:53 PDT"]
[Termination "ChessWarrior7197 won on time"]

1. d4 {[%clk 0:03:00.9]} 1... Nf6 {[%clk 0:02:59.5]} 2. Nc3 {[%clk 0:03:00.8]}
2... d5 {[%clk 0:02:58.1]} 3. Bf4 {[%clk 0:03:00]} 3... a6 {[%clk 0:02:57.8]} 4.
e3 {[%clk 0:02:59.7]} 4... e6 {[%clk 0:02:57.9]} 5. g4 {[%clk 0:03:00.1]} 5...
c5 {[%clk 0:02:45]} 6. g5 {[%clk 0:02:59.4]} 6... Nfd7 {[%clk 0:02:45.2]} 7. h4
{[%clk 0:02:53]} 7... Nc6 {[%clk 0:02:44.2]} 8. Nf3 {[%clk 0:02:50.8]} 8... b5
{[%clk 0:02:29.8]} 9. h5 {[%clk 0:02:44.4]} 9... Bb7 {[%clk 0:02:20.6]} 10. Rh3
{[%clk 0:02:29.8]} 10... g6 {[%clk 0:01:49.7]} 11. hxg6 {[%clk 0:02:29.4]} 11...
fxg6 {[%clk 0:01:49.4]} 12. Ne2 {[%clk 0:02:25.7]} 12... Bg7 {[%clk 0:01:45.1]}
13. c3 {[%clk 0:02:26.3]} 13... Qe7 {[%clk 0:01:18.7]} 14. Qc2 {[%clk
0:02:17.1]} 14... O-O {[%clk 0:01:00.7]} 15. Bg2 {[%clk 0:02:14.1]} 15... Rac8
{[%clk 0:00:53.4]} 16. Nh4 {[%clk 0:01:35.6]} 16... Qf7 {[%clk 0:00:48.5]} 17.
Rf3 {[%clk 0:01:29.1]} 17... Qe8 {[%clk 0:00:43.9]} 18. Rd1 {[%clk 0:01:11.3]}
18... cxd4 {[%clk 0:00:32.3]} 19. exd4 {[%clk 0:01:10.5]} 19... b4 {[%clk
0:00:30.3]} 20. Re3 {[%clk 0:01:10]} 20... Qf7 {[%clk 0:00:25]} 21. Nf3 {[%clk
0:01:07.3]} 21... a5 {[%clk 0:00:22.6]} 22. Bd6 {[%clk 0:01:05.3]} 22... Rfe8
{[%clk 0:00:22.1]} 23. Nh2 {[%clk 0:00:57.8]} 23... Bf8 {[%clk 0:00:15.7]} 24.
Ng4 {[%clk 0:00:56.2]} 24... Kh8 {[%clk 0:00:09.5]} 25. Bxf8 {[%clk 0:00:49]}
25... Rxf8 {[%clk 0:00:09.4]} 26. f4 {[%clk 0:00:49.6]} 26... Ba6 {[%clk
0:00:07]} 27. Rf3 {[%clk 0:00:47.4]} 27... bxc3 {[%clk 0:00:06.7]} 28. bxc3
{[%clk 0:00:47.6]} 28... Nb6 {[%clk 0:00:06.8]} 29. Nf6 {[%clk 0:00:46.8]} 29...
Nc4 {[%clk 0:00:05.1]} 30. Rh3 {[%clk 0:00:45.9]} 30... h5 {[%clk 0:00:05.1]}
31. Ng3 {[%clk 0:00:44.9]} 31... Ne3 {[%clk 0:00:02.4]} 32. Qd2 {[%clk
0:00:45.5]} 32... Nxg2+ {[%clk 0:00:01.7]} 33. Qxg2 {[%clk 0:00:45.5]} 33... Ne7
{[%clk 0:00:02.3]} 34. Ngxh5 {[%clk 0:00:44.7]} 34... gxh5 {[%clk 0:00:02.2]}
35. Rxh5+ {[%clk 0:00:45.6]} 35... Qxh5 {[%clk 0:00:02.2]} 36. Nxh5 {[%clk
0:00:46.5]} 36... Rxc3 {[%clk 0:00:02.4]} 37. Rd2 {[%clk 0:00:30.8]} 37... Rc1+
{[%clk 0:00:02.2]} 38. Kf2 {[%clk 0:00:30.9]} 38... Nf5 {[%clk 0:00:02]} 39. Nf6
{[%clk 0:00:30.4]} 39... Rf1+ {[%clk 0:00:02]} 40. Qxf1 {[%clk 0:00:31]} 40...
Bxf1 {[%clk 0:00:02.6]} 41. Kxf1 {[%clk 0:00:31.9]} 41... Rc8 {[%clk 0:00:02.8]}
42. Nd7 {[%clk 0:00:30.5]} 42... Rc4 {[%clk 0:00:02.1]} 43. Kf2 {[%clk
0:00:20.7]} 43... Nxd4 {[%clk 0:00:01.2]} 44. Ne5 {[%clk 0:00:21.2]} 44... Ra4
{[%clk 0:00:01.5]} 45. Rb2 {[%clk 0:00:20.8]} 45... Nf5 {[%clk 0:00:01.3]} 46.
Rb8+ {[%clk 0:00:21.2]} 46... Kg7 {[%clk 0:00:01.5]} 47. Rb7+ {[%clk 0:00:22.1]}
47... Kg8 {[%clk 0:00:02]} 48. Kf3 {[%clk 0:00:22.3]} 48... Ra3+ {[%clk
0:00:01.8]} 49. Kg4 {[%clk 0:00:22.1]} 49... Rxa2 {[%clk 0:00:02.1]} 50. Kh5
{[%clk 0:00:22.4]} 50... Rg2 {[%clk 0:00:01.4]} 51. Kg6 {[%clk 0:00:22.6]} 51...
Nh4+ {[%clk 0:00:01.8]} 52. Kf6 {[%clk 0:00:23.1]} 52... Rf2 {[%clk 0:00:02.2]}
53. Rb8+ {[%clk 0:00:22.5]} 53... Kh7 {[%clk 0:00:02.1]} 54. g6+ {[%clk
0:00:23.4]} 1-0

[Event "Late-Titled-Tuesday-Blitz-September-19-2023"]
[Site "Chess.com"]
[Date "2023.09.19"]
[Round "8"]
[White "jaskol95"]
[Black "BeanScreen"]
[Result "1-0"]
[WhiteElo "2563"]
[BlackElo "2690"]
[TimeControl "180+1"]
[EndTime "15:27:54 PDT"]
[Termination "jaskol95 won by checkmate"]

1. d4 {[%clk 0:03:00.9]} 1... d5 {[%clk 0:02:59.6]} 2. Nc3 {[%clk 0:02:58.3]}
2... Nf6 {[%clk 0:02:59.2]} 3. Bf4 {[%clk 0:02:58.7]} 3... a6 {[%clk 0:02:59.1]}
4. e3 {[%clk 0:02:56]} 4... Bf5 {[%clk 0:02:58.5]} 5. Nf3 {[%clk 0:02:55.5]}
5... e6 {[%clk 0:02:58.7]} 6. Ne5 {[%clk 0:02:55.4]} 6... Nfd7 {[%clk
0:02:58.7]} 7. Bd3 {[%clk 0:02:52.8]} 7... Bxd3 {[%clk 0:02:39.2]} 8. cxd3
{[%clk 0:02:52.6]} 8... Nxe5 {[%clk 0:02:36]} 9. Bxe5 {[%clk 0:02:52.3]} 9...
Nd7 {[%clk 0:02:35.3]} 10. Bg3 {[%clk 0:02:51.9]} 10... c5 {[%clk 0:02:35]} 11.
dxc5 {[%clk 0:02:50.3]} 11... Bxc5 {[%clk 0:02:33.6]} 12. d4 {[%clk 0:02:50.1]}
12... Bb4 {[%clk 0:02:32.7]} 13. O-O {[%clk 0:02:49.9]} 13... Bxc3 {[%clk
0:02:30.8]} 14. bxc3 {[%clk 0:02:49.9]} 14... Rc8 {[%clk 0:02:20.6]} 15. Qb3
{[%clk 0:02:36.2]} 15... Nb6 {[%clk 0:01:02.9]} 16. Rab1 {[%clk 0:02:35.8]}
16... Rc6 {[%clk 0:01:01.8]} 17. e4 {[%clk 0:02:08.7]} 17... dxe4 {[%clk
0:00:56.7]} 18. f3 {[%clk 0:02:09.3]} 18... exf3 {[%clk 0:00:43.7]} 19. Rxf3
{[%clk 0:02:09.4]} 19... O-O {[%clk 0:00:44]} 20. Be5 {[%clk 0:01:45.7]} 20...
Nc4 {[%clk 0:00:39.5]} 21. Qxb7 {[%clk 0:01:34.5]} 21... Nxe5 {[%clk 0:00:39.3]}
22. dxe5 {[%clk 0:01:34.9]} 22... Rxc3 {[%clk 0:00:39.6]} 23. Rxc3 {[%clk
0:01:17.8]} 23... Qd4+ {[%clk 0:00:39.7]} 24. Kh1 {[%clk 0:01:18.4]} 24... Qxc3
{[%clk 0:00:40.4]} 25. Qxa6 {[%clk 0:01:15.7]} 25... Qxe5 {[%clk 0:00:40.1]} 26.
a4 {[%clk 0:01:12.5]} 26... Rd8 {[%clk 0:00:32.7]} 27. Qb6 {[%clk 0:00:58.9]}
27... Qd5 {[%clk 0:00:25.5]} 28. a5 {[%clk 0:00:49.4]} 28... h5 {[%clk
0:00:19.1]} 29. a6 {[%clk 0:00:44.3]} 29... h4 {[%clk 0:00:18.9]} 30. a7 {[%clk
0:00:34]} 30... Kh7 {[%clk 0:00:18.3]} 31. h3 {[%clk 0:00:24.4]} 31... e5 {[%clk
0:00:11.9]} 32. Qb8 {[%clk 0:00:14.4]} 32... e4 {[%clk 0:00:10.8]} 33. Rb5
{[%clk 0:00:07.7]} 33... Qd1+ {[%clk 0:00:09.8]} 34. Kh2 {[%clk 0:00:08.2]}
34... Rd2 {[%clk 0:00:04.9]} 35. Qf4 {[%clk 0:00:03.7]} 35... Qe2 {[%clk
0:00:03.7]} 36. Qxh4+ {[%clk 0:00:03.7]} 36... Kg6 {[%clk 0:00:03.7]} 37. Qg5+
{[%clk 0:00:04]} 37... Kh7 {[%clk 0:00:04.1]} 38. Qh5+ {[%clk 0:00:04.1]} 38...
Qxh5 {[%clk 0:00:04.2]} 39. Rxh5+ {[%clk 0:00:05]} 39... Kg6 {[%clk 0:00:04.9]}
40. a8=Q {[%clk 0:00:05.5]} 40... Kxh5 {[%clk 0:00:05.1]} 41. Qa5+ {[%clk
0:00:05.5]} 41... Rd5 {[%clk 0:00:03.6]} 42. Qxd5+ {[%clk 0:00:05.6]} 42... Kh6
{[%clk 0:00:03.7]} 43. Qxe4 {[%clk 0:00:05.9]} 43... g6 {[%clk 0:00:04.2]} 44.
Qe5 {[%clk 0:00:05.9]} 44... Kh7 {[%clk 0:00:04.6]} 45. Qf6 {[%clk 0:00:06]}
45... Kg8 {[%clk 0:00:05]} 46. Kg3 {[%clk 0:00:06.4]} 46... Kf8 {[%clk 0:00:05]}
47. Kf4 {[%clk 0:00:06.7]} 47... Kg8 {[%clk 0:00:05.6]} 48. Kg5 {[%clk
0:00:07.1]} 48... Kh7 {[%clk 0:00:05.3]} 49. Qxf7+ {[%clk 0:00:07.3]} 49... Kh8
{[%clk 0:00:05.8]} 50. Kh6 {[%clk 0:00:07.8]} 50... g5 {[%clk 0:00:05.9]} 51.
Qe8# {[%clk 0:00:08.7]} 1-0

[Event "Late-Titled-Tuesday-Blitz-September-19-2023"]
[Site "Chess.com"]
[Date "2023.09.19"]
[Round "8"]
[White "Bala-Afiada"]
[Black "protectiago"]
[Result "1-0"]
[WhiteElo "1967"]
[BlackElo "2065"]
[TimeControl "180+1"]
[EndTime "15:27:55 PDT"]
[Termination "Bala-Afiada won on time"]

1. d4 {[%clk 0:02:58.4]} 1... Nf6 {[%clk 0:02:49.6]} 2. c4 {[%clk 0:02:57.8]}
2... g6 {[%clk 0:02:48.6]} 3. Nc3 {[%clk 0:02:55.5]} 3... d5 {[%clk 0:02:41]} 4.
cxd5 {[%clk 0:02:55.2]} 4... Nxd5 {[%clk 0:02:40.6]} 5. e4 {[%clk 0:02:56.1]}
5... Nxc3 {[%clk 0:02:37.8]} 6. bxc3 {[%clk 0:02:57]} 6... Bg7 {[%clk
0:02:37.3]} 7. Bc4 {[%clk 0:02:57.2]} 7... c5 {[%clk 0:02:37.1]} 8. Be3 {[%clk
0:02:57.6]} 8... Nc6 {[%clk 0:02:26.1]} 9. Ne2 {[%clk 0:02:57.3]} 9... O-O
{[%clk 0:02:22.7]} 10. O-O {[%clk 0:02:56.3]} 10... Bg4 {[%clk 0:02:21.3]} 11.
f3 {[%clk 0:02:56]} 11... cxd4 {[%clk 0:02:21.1]} 12. cxd4 {[%clk 0:02:46.9]}
12... Na5 {[%clk 0:02:19.3]} 13. Bd3 {[%clk 0:02:38.2]} 13... Be6 {[%clk
0:01:53.5]} 14. d5 {[%clk 0:02:37.7]} 14... Bxa1 {[%clk 0:01:46.5]} 15. Qxa1
{[%clk 0:02:38.6]} 15... f6 {[%clk 0:01:46.3]} 16. Bh6 {[%clk 0:02:35.4]} 16...
Re8 {[%clk 0:01:45.2]} 17. Bb5 {[%clk 0:02:33.4]} 17... Bd7 {[%clk 0:01:43.4]}
18. Bxd7 {[%clk 0:02:15.5]} 18... Qxd7 {[%clk 0:01:42.4]} 19. Nf4 {[%clk
0:01:57.3]} 19... Nc4 {[%clk 0:01:32.8]} 20. Ne6 {[%clk 0:01:50.4]} 20... Qd6
{[%clk 0:01:02.4]} 21. Kh1 {[%clk 0:01:31.5]} 21... Rac8 {[%clk 0:00:53.8]} 22.
Rb1 {[%clk 0:01:24.7]} 22... Na3 {[%clk 0:00:31.4]} 23. Rxb7 {[%clk 0:01:15.3]}
23... Rc2 {[%clk 0:00:31.3]} 24. Bf4 {[%clk 0:00:45.3]} 24... Qa6 {[%clk
0:00:29.3]} 25. Rc7 {[%clk 0:00:34.4]} 25... Rc8 {[%clk 0:00:24.4]} 26. Rxc8+
{[%clk 0:00:31.4]} 26... Qxc8 {[%clk 0:00:18.5]} 27. Qd1 {[%clk 0:00:31]} 27...
Rxa2 {[%clk 0:00:15.6]} 28. h3 {[%clk 0:00:29.9]} 28... Qc2 {[%clk 0:00:14.9]}
29. Qg1 {[%clk 0:00:27.3]} 29... Nc4 {[%clk 0:00:14.1]} 30. Kh2 {[%clk
0:00:15.8]} 30... a5 {[%clk 0:00:12.8]} 31. Qf1 {[%clk 0:00:15.1]} 31... a4
{[%clk 0:00:12.2]} 32. Nd4 {[%clk 0:00:14.7]} 32... Qc3 {[%clk 0:00:07.8]} 33.
Nb5 {[%clk 0:00:13.7]} 33... Qb4 {[%clk 0:00:07.4]} 34. Nd4 {[%clk 0:00:12.9]}
34... a3 {[%clk 0:00:06.4]} 35. Nc6 {[%clk 0:00:11.7]} 35... Qc5 {[%clk
0:00:05.6]} 36. Qb1 {[%clk 0:00:09.3]} 36... Rb2 {[%clk 0:00:05.5]} 37. Qc1
{[%clk 0:00:08.6]} 37... a2 {[%clk 0:00:04.5]} 38. Nxe7+ {[%clk 0:00:08.7]}
38... Kf7 {[%clk 0:00:03.8]} 39. Nc6 {[%clk 0:00:07.8]} 39... Rb1 {[%clk
0:00:03.2]} 40. Qc2 {[%clk 0:00:07.2]} 40... a1=Q {[%clk 0:00:02.6]} 41. Nd8+
{[%clk 0:00:08.1]} 41... Kg7 {[%clk 0:00:02.3]} 42. Ne6+ {[%clk 0:00:05.6]}
42... Kg8 {[%clk 0:00:01.2]} 43. Nxc5 {[%clk 0:00:06.5]} 1-0

[Event "Late-Titled-Tuesday-Blitz-September-19-2023"]
[Site "Chess.com"]
[Date "2023.09.19"]
[Round "8"]
[White "talaicito"]
[Black "UGgm_Manuel"]
[Result "1-0"]
[WhiteElo "2181"]
[BlackElo "2285"]
[TimeControl "180+1"]
[EndTime "15:27:57 PDT"]
[Termination "talaicito won on time"]

1. d4 {[%clk 0:03:00.9]} 1... Nf6 {[%clk 0:02:53]} 2. Nc3 {[%clk 0:03:00.2]}
2... g6 {[%clk 0:02:52.8]} 3. e4 {[%clk 0:02:59.9]} 3... d6 {[%clk 0:02:53.4]}
4. Bf4 {[%clk 0:03:00.1]} 4... Bg7 {[%clk 0:02:53.3]} 5. Qd2 {[%clk 0:03:00.7]}
5... h6 {[%clk 0:02:48.6]} 6. h4 {[%clk 0:03:00.1]} 6... c6 {[%clk 0:02:40.6]}
7. f3 {[%clk 0:02:57.6]} 7... b5 {[%clk 0:02:40.8]} 8. O-O-O {[%clk 0:02:57.2]}
8... Qc7 {[%clk 0:02:35.8]} 9. e5 {[%clk 0:02:52.9]} 9... Nh5 {[%clk 0:02:28.4]}
10. exd6 {[%clk 0:02:51.4]} 10... exd6 {[%clk 0:02:26.6]} 11. Re1+ {[%clk
0:02:51.3]} 11... Be6 {[%clk 0:02:20.4]} 12. d5 {[%clk 0:02:49.4]} 12... Nxf4
{[%clk 0:02:15.9]} 13. Qxf4 {[%clk 0:02:44.6]} 13... Bxc3 {[%clk 0:02:13.7]} 14.
bxc3 {[%clk 0:02:43.8]} 14... cxd5 {[%clk 0:02:12.1]} 15. Bxb5+ {[%clk
0:02:40.3]} 15... Nd7 {[%clk 0:02:11.4]} 16. Rxe6+ {[%clk 0:02:24.1]} 16... fxe6
{[%clk 0:02:09]} 17. Qf6 {[%clk 0:02:24.6]} 17... Rf8 {[%clk 0:02:03.2]} 18.
Qxe6+ {[%clk 0:02:24.7]} 18... Kd8 {[%clk 0:02:02]} 19. Bxd7 {[%clk 0:02:14.1]}
19... Qxd7 {[%clk 0:01:51.9]} 20. Qxd5 {[%clk 0:02:13.9]} 20... Rc8 {[%clk
0:01:50.3]} 21. Ne2 {[%clk 0:02:12.4]} 21... Qc6 {[%clk 0:01:46.7]} 22. Qxc6
{[%clk 0:02:09.8]} 22... Rxc6 {[%clk 0:01:44.4]} 23. Nd4 {[%clk 0:02:10.4]}
23... Rxc3 {[%clk 0:01:23.1]} 24. Ne6+ {[%clk 0:02:10.2]} 24... Ke7 {[%clk
0:01:23.3]} 25. Nxf8 {[%clk 0:02:10.3]} 25... Kxf8 {[%clk 0:01:24]} 26. Re1
{[%clk 0:02:10.6]} 26... Kf7 {[%clk 0:01:22.7]} 27. Kb2 {[%clk 0:02:07.9]} 27...
Rc4 {[%clk 0:01:21.7]} 28. g3 {[%clk 0:02:06.1]} 28... g5 {[%clk 0:01:16.6]} 29.
hxg5 {[%clk 0:01:55]} 29... hxg5 {[%clk 0:01:12.1]} 30. Kb3 {[%clk 0:01:55.3]}
30... Rc8 {[%clk 0:01:06.9]} 31. c4 {[%clk 0:01:53.5]} 31... Rh8 {[%clk
0:01:01.9]} 32. Re3 {[%clk 0:01:26.4]} 32... Rh3 {[%clk 0:00:59.2]} 33. g4
{[%clk 0:01:26.6]} 33... Rh1 {[%clk 0:00:56.3]} 34. Rd3 {[%clk 0:01:21]} 34...
Ke6 {[%clk 0:00:53.8]} 35. Rd5 {[%clk 0:01:20.3]} 35... Rf1 {[%clk 0:00:53.1]}
36. Rf5 {[%clk 0:01:20.4]} 36... Kd7 {[%clk 0:00:48.7]} 37. Kc3 {[%clk
0:01:14.4]} 37... Rf2 {[%clk 0:00:46.1]} 38. a4 {[%clk 0:01:13.6]} 38... Ke6
{[%clk 0:00:46]} 39. a5 {[%clk 0:01:12.6]} 39... a6 {[%clk 0:00:41.6]} 40. Kd3
{[%clk 0:01:12.6]} 40... Ke7 {[%clk 0:00:37]} 41. Ke3 {[%clk 0:01:11.8]} 41...
Rc2 {[%clk 0:00:36.2]} 42. Rxg5 {[%clk 0:01:05.3]} 42... Rxc4 {[%clk 0:00:35]}
43. f4 {[%clk 0:01:04.1]} 43... Kf6 {[%clk 0:00:33.7]} 44. Rf5+ {[%clk
0:01:02.1]} 44... Kg6 {[%clk 0:00:32.1]} 45. Rd5 {[%clk 0:01:01.5]} 45... Rc6
{[%clk 0:00:26]} 46. g5 {[%clk 0:00:50.2]} 46... Kf7 {[%clk 0:00:10.5]} 47. f5
{[%clk 0:00:49]} 47... Ke7 {[%clk 0:00:10.4]} 48. g6 {[%clk 0:00:41.7]} 48...
Rc3+ {[%clk 0:00:08.9]} 49. Kf4 {[%clk 0:00:41.4]} 49... Rc5 {[%clk 0:00:06.3]}
50. Rxc5 {[%clk 0:00:39.1]} 50... dxc5 {[%clk 0:00:07.2]} 51. Ke5 {[%clk
0:00:39.5]} 51... Kd7 {[%clk 0:00:07.1]} 52. Kd5 {[%clk 0:00:39.4]} 52... Ke7
{[%clk 0:00:06.1]} 53. Kxc5 {[%clk 0:00:39.5]} 53... Kf6 {[%clk 0:00:07]} 54.
Kb6 {[%clk 0:00:39.8]} 54... Kxf5 {[%clk 0:00:07.9]} 55. g7 {[%clk 0:00:40.1]}
1-0

[Event "Late-Titled-Tuesday-Blitz-September-19-2023"]
[Site "Chess.com"]
[Date "2023.09.19"]
[Round "8"]
[White "Njal28"]
[Black "JoakimVonAnd"]
[Result "1-0"]
[WhiteElo "3097"]
[BlackElo "2724"]
[TimeControl "180+1"]
[EndTime "15:27:59 PDT"]
[Termination "Njal28 won by resignation"]

1. d4 {[%clk 0:03:00.9]} 1... d5 {[%clk 0:02:59.1]} 2. c4 {[%clk 0:03:00.3]}
2... e6 {[%clk 0:02:59.4]} 3. Nc3 {[%clk 0:03:00.7]} 3... c5 {[%clk 0:02:59.9]}
4. cxd5 {[%clk 0:03:00.8]} 4... exd5 {[%clk 0:03:00.8]} 5. Nf3 {[%clk 0:03:01]}
5... Nf6 {[%clk 0:03:01.3]} 6. Bg5 {[%clk 0:03:01.4]} 6... Be6 {[%clk
0:03:01.5]} 7. e3 {[%clk 0:03:00.6]} 7... c4 {[%clk 0:02:59.8]} 8. a3 {[%clk
0:02:59.8]} 8... h6 {[%clk 0:02:53.2]} 9. Bxf6 {[%clk 0:02:59.5]} 9... Qxf6
{[%clk 0:02:54.1]} 10. g3 {[%clk 0:02:58]} 10... Be7 {[%clk 0:02:51.5]} 11. Bg2
{[%clk 0:02:57.8]} 11... O-O {[%clk 0:02:48.7]} 12. Ng1 {[%clk 0:02:55.8]} 12...
Rd8 {[%clk 0:02:47.6]} 13. Nge2 {[%clk 0:02:55.5]} 13... Na6 {[%clk 0:02:48]}
14. Nf4 {[%clk 0:02:54.4]} 14... Nc7 {[%clk 0:02:48.2]} 15. Qh5 {[%clk
0:02:54.5]} 15... Qg5 {[%clk 0:02:44.1]} 16. Qe2 {[%clk 0:02:31.2]} 16... b5
{[%clk 0:02:39.9]} 17. h4 {[%clk 0:02:29.8]} 17... Qf6 {[%clk 0:02:38.7]} 18.
Rd1 {[%clk 0:02:20.8]} 18... b4 {[%clk 0:02:36.9]} 19. axb4 {[%clk 0:02:20.7]}
19... Bxb4 {[%clk 0:02:37.8]} 20. O-O {[%clk 0:02:21.1]} 20... Rab8 {[%clk
0:01:50.8]} 21. e4 {[%clk 0:02:09.6]} 21... dxe4 {[%clk 0:01:44.7]} 22. Nxe4
{[%clk 0:02:10.5]} 22... Qe7 {[%clk 0:01:45.2]} 23. Nc3 {[%clk 0:01:48]} 23...
Bc8 {[%clk 0:01:24.1]} 24. Qc2 {[%clk 0:01:40.1]} 24... Bb7 {[%clk 0:01:10.5]}
25. Bxb7 {[%clk 0:01:27]} 25... Rxb7 {[%clk 0:01:11.4]} 26. Ne4 {[%clk
0:01:26.5]} 26... Ne6 {[%clk 0:01:05.5]} 27. Nxe6 {[%clk 0:01:08.1]} 27... Qxe6
{[%clk 0:01:06.4]} 28. d5 {[%clk 0:00:58.7]} 28... Rxd5 {[%clk 0:01:04.4]} 29.
Rxd5 {[%clk 0:00:59.6]} 29... Qxd5 {[%clk 0:01:03.9]} 30. Rd1 {[%clk 0:01:00.5]}
30... Qc6 {[%clk 0:00:50.4]} 31. Rd4 {[%clk 0:00:44.4]} 31... Rb8 {[%clk
0:00:25.7]} 32. Rxc4 {[%clk 0:00:42.5]} 32... Qd5 {[%clk 0:00:21.4]} 33. b3
{[%clk 0:00:35.9]} 33... Bf8 {[%clk 0:00:20.9]} 34. Nc3 {[%clk 0:00:24.5]} 34...
Qb7 {[%clk 0:00:20.6]} 35. Ne2 {[%clk 0:00:14.4]} 35... Qxb3 {[%clk 0:00:20.8]}
36. Qxb3 {[%clk 0:00:15.3]} 36... Rxb3 {[%clk 0:00:21.1]} 37. Rc8 {[%clk
0:00:16.2]} 37... g6 {[%clk 0:00:21.2]} 38. Ra8 {[%clk 0:00:17.1]} 38... Ra3
{[%clk 0:00:20.5]} 39. h5 {[%clk 0:00:16.3]} 39... Kg7 {[%clk 0:00:20.6]} 40.
hxg6 {[%clk 0:00:16.9]} 40... fxg6 {[%clk 0:00:21.3]} 41. Nf4 {[%clk 0:00:17.6]}
41... Bd6 {[%clk 0:00:20.4]} 42. Nd5 {[%clk 0:00:18.3]} 42... Ra5 {[%clk
0:00:19.9]} 43. Nc3 {[%clk 0:00:17.6]} 43... Bc5 {[%clk 0:00:20.2]} 44. Ne4
{[%clk 0:00:18]} 44... Ra1+ {[%clk 0:00:20.2]} 45. Kg2 {[%clk 0:00:18.1]} 45...
Bd4 {[%clk 0:00:20.9]} 46. Rd8 {[%clk 0:00:18.4]} 46... Bb6 {[%clk 0:00:20.9]}
47. Rd7+ {[%clk 0:00:19.1]} 47... Kf8 {[%clk 0:00:21.4]} 48. Nf6 {[%clk
0:00:18.9]} 48... Ra2 {[%clk 0:00:20.8]} 49. Ne4 {[%clk 0:00:18.1]} 49... Kg8
{[%clk 0:00:17.1]} 50. Kf3 {[%clk 0:00:16.7]} 50... h5 {[%clk 0:00:16.9]} 51.
Kf4 {[%clk 0:00:14]} 51... Bxf2 {[%clk 0:00:15.2]} 52. Kg5 {[%clk 0:00:14.5]}
52... Be3+ {[%clk 0:00:11.3]} 53. Kxg6 {[%clk 0:00:13.7]} 53... Ra6+ {[%clk
0:00:12]} 54. Nf6+ {[%clk 0:00:13.8]} 54... Rxf6+ {[%clk 0:00:09.7]} 55. Kxf6
{[%clk 0:00:14.7]} 55... Bf2 {[%clk 0:00:09.4]} 56. Kg6 {[%clk 0:00:13]} 56...
Kf8 {[%clk 0:00:09.7]} 57. Rf7+ {[%clk 0:00:13.7]} 1-0